fUST/lending_fUST_20250720
["ID","MTS","AMOUNT","RATE_DAILY","PERIOD"]
[373351643,1752961857521,-9513.16059442,0.00022038,6]
[373351644,1752961857530,-12500.0,0.00022062,7]
[373351645,1752961857540,-994.666267,0.00022062,7]
[373351646,1752961857549,-994.666267,0.00022062,7]
[373351647,1752961857559,-151.0,0.00022062,7]
[373351648,1752961857568,-151.0,0.00022062,7]
[373351649,1752961857578,-151.0,0.00022062,7]
[373351650,1752961857587,-205.50955,0.00022062,7]
[373351651,1752961857597,-178.1115364,0.00022082,2]
[373351652,1752961857606,-577.1515091,0.00022082,2]
[373351653,1752961857616,-476.34170116,0.000221,7]
[373351654,1752961857625,-232.79235763,0.000221,2]
[373351655,1752961857634,-12612.80205064,0.000221,7]
[373351656,1752961857644,-214.52603969,0.000221,7]
[373351657,1752961857654,-736.79,0.00022106,2]
[373351658,1752961857663,-509.72,0.00022107,2]
[373351659,1752961857673,-555.37,0.00022107,2]
[373351660,1752961857683,-460.0,0.00022107,2]
[373351661,1752961857693,-1144.31,0.00022107,2]
[373351662,1752961857703,-1792.78,0.00022107,2]
[373351663,1752961857712,-1310.48,0.00022107,2]
[373351664,1752961857723,-460.0,0.00022107,2]
[373351665,1752961857732,-571.29,0.00022107,2]
[373351666,1752961857741,-512.3,0.00022107,2]
[373351667,1752961857750,-1418.71,0.00022107,2]
[373351668,1752961857760,-460.0,0.00022107,2]
[373351669,1752961857769,-791.31,0.00022108,2]
[373351670,1752961857778,-543.72,0.00022108,2]
[373351671,1752961857787,-1978.99,0.00022108,2]
[373351672,1752961857796,-1228.71032068,0.00022109,2]
[373351673,1752961857805,-151.0,0.00022109,7]
[373351674,1752961857814,-537.66,0.00022109,2]
[373351675,1752961857824,-476.16,0.00022109,2]
[373351676,1752961857834,-975.33,0.00022109,2]
[373351677,1752961857843,-1037.05,0.00022109,2]
[373351678,1752961857853,-929.09,0.00022153,2]
[373351679,1752961857862,-780.24,0.00022153,2]
[373351680,1752961857871,-274.136827,0.00022155,7]
[373351681,1752961857880,-274.136827,0.00022155,7]
[373351682,1752961857890,-151.0,0.00022155,7]
[373351683,1752961857899,-151.0,0.00022155,7]
[373351684,1752961857908,-202.464755,0.00022155,7]
[373351685,1752961857917,-202.464755,0.00022155,7]
[373351686,1752961857927,-151.0,0.00022157,7]
[373351687,1752961857936,-643.0,0.00022158,2]
[373351688,1752961857945,-151.0,0.00022158,2]
[373351689,1752961857954,-577.0,0.00022158,2]
[373351690,1752961857964,-220.44796763,0.00022158,2]
[373351691,1752961857973,-200.0,0.00022175,2]
[373351692,1752961857982,-316.0,0.00022187,2]
[373351693,1752961857992,-188.0,0.00022192,7]
[373351694,1752961858001,-151.0,0.000222,7]
[373351695,1752961858011,-200.794724,0.000222,7]
[373351696,1752961858020,-238.210998,0.00022205,7]
[373351697,1752961858030,-151.0,0.00022205,7]
[373351698,1752961858040,-151.0,0.00022205,7]
[373351699,1752961858050,-660.0,0.00022206,2]
[373351700,1752961858059,-5888.0,0.00022234,2]
[373351701,1752961858069,-316.0,0.00022238,2]
[373351702,1752961858079,-517.73282195,0.00022239,2]
[373351703,1752961858088,-152.474155,0.00022245,6]
[373351704,1752961858097,-152.474155,0.0002225,4]
[373351705,1752961858107,-316.0,0.00022297,2]
[373351706,1752961858116,-200.0,0.00022299,2]
[373351707,1752961858127,-11026.87180869,0.000223,2]
[373351708,1752961858136,-151.0,0.000223,8]
[373351709,1752961858147,-9513.16059442,0.00022314,7]
[373351710,1752961858156,-299.467832,0.0002232,7]
[373351711,1752961858167,-152.474155,0.00022326,2]
[373351712,1752961858178,-151.0,0.00022357,7]
[373351713,1752961858187,-736.79,0.0002238,2]
[373351714,1752961858197,-509.72,0.00022381,2]
[373351715,1752961858206,-555.37,0.00022381,2]
[373351716,1752961858216,-460.0,0.00022381,2]
[373351717,1752961858226,-1144.31,0.00022381,2]
[373351718,1752961858235,-1792.78,0.00022381,2]
[373351719,1752961858244,-1310.48,0.00022381,2]
[373351720,1752961858254,-460.0,0.00022381,2]
[373351721,1752961858264,-571.29,0.00022381,2]
[373351722,1752961858274,-512.3,0.00022381,2]
[373351723,1752961858284,-1418.71,0.00022381,2]
[373351724,1752961858295,-460.0,0.00022381,2]
[373351725,1752961858304,-791.31,0.00022382,2]
[373351726,1752961858314,-543.72,0.00022382,2]
[373351727,1752961858324,-1978.99,0.00022382,2]
[373351728,1752961858334,-151.0,0.00022383,7]
[373351729,1752961858343,-537.66,0.00022383,2]
[373351730,1752961858353,-476.16,0.00022383,2]
[373351731,1752961858363,-975.33,0.00022383,2]
[373351732,1752961858372,-1037.05,0.00022383,2]
[373351733,1752961858382,-306.0,0.00022384,2]
[373351734,1752961858416,-307.9988728,0.00022384,2]
[373351735,1752961858427,-200.0,0.000224,2]
[373351736,1752961858437,-189.456281,0.000224,2]
[373351737,1752961858447,-929.09,0.00022427,2]
[373351738,1752961858457,-780.24,0.00022427,2]
[373351739,1752961858468,-280.10405,0.00022428,7]
[373351740,1752961858478,-280.10405,0.00022428,7]
[373351741,1752961858487,-643.0,0.00022432,2]
[373351742,1752961858497,-151.0,0.00022432,2]
[373351743,1752961858508,-577.0,0.00022432,2]
[373351744,1752961858520,-4000.0,0.00022436,4]
[373351745,1752961858529,-151.0,0.00022438,7]
[373351746,1752961858539,-151.0,0.00022438,7]
[373351747,1752961858549,-151.0,0.00022456,7]
[373351748,1752961858558,-206.0,0.0002248,2]
[373351749,1752961858567,-49777.97378032,0.0002249,7]
[373351750,1752961858576,-151.0,0.0002249,7]
[373351751,1752961858586,-297.102138,0.0002249,7]
[373351752,1752961858596,-151.0,0.0002249,7]
[373351753,1752961858607,-151.0,0.0002249,7]
[373351754,1752961858618,-274.136827,0.0002249,7]
[373351755,1752961858627,-274.136827,0.0002249,7]
[373351756,1752961858637,-151.0,0.0002249,7]
[373351757,1752961858647,-500.0,0.0002249,8]
[373351758,1752961858656,-500.0,0.0002249,8]
[373351759,1752961858665,-151.0,0.0002249,7]
[373351760,1752961858675,-994.666267,0.0002249,7]
[373351761,1752961858683,-994.666267,0.0002249,7]
[373351762,1752961858692,-151.0,0.0002249,7]
[373351763,1752961858702,-163.401399,0.0002249,7]
[373351764,1752961858712,-163.401399,0.0002249,7]
[373351765,1752961858721,-151.0,0.0002249,7]
[373351766,1752961858731,-151.0,0.0002249,7]
[373351767,1752961858740,-151.0,0.0002249,7]
[373351768,1752961858749,-447.991783,0.0002249,7]
[373351769,1752961858758,-447.991783,0.0002249,7]
[373351770,1752961858767,-151.0,0.00022515,7]
[373351771,1752961858776,-250.0,0.00022521,2]
[373351772,1752961858785,-1000.0,0.00022521,2]
[373351773,1752961858794,-1000.0,0.00022521,2]
[373351774,1752961858803,-1000.0,0.00022521,2]
[373351775,1752961858813,-300.17482589,0.00022521,2]
[373351776,1752961858823,-501.57063564,0.00022521,2]
[373351777,1752961858833,-1000.0,0.00022521,2]
[373351778,1752961858842,-1000.0,0.00022521,2]
[373351779,1752961858852,-1000.0,0.00022521,2]
[373351780,1752961858863,-507.40545846,0.00022521,2]
[373351781,1752961858873,-500.0,0.00022521,2]
[373351782,1752961858882,-700.6701932,0.00022521,2]
[373351783,1752961858891,-1000.0,0.00022521,2]
[373351784,1752961858901,-174.63255657,0.00022521,2]
[373351785,1752961858910,-1000.0,0.00022521,2]
[373351786,1752961858921,-1000.0,0.00022521,2]
[373351787,1752961858931,-1000.0,0.00022521,2]
[373351788,1752961858942,-1000.0,0.00022521,2]
[373351789,1752961859031,-316.0,0.00022561,2]
[373351790,1752961859041,-223.0315306,0.00022564,2]
[373351791,1752961859051,-152.474155,0.00022577,6]
[373351792,1752961859060,-541.19,0.00022584,2]
[373351793,1752961859070,-530.42,0.00022587,2]
[373351794,1752961859079,-9513.16059442,0.0002259,7]
[373351795,1752961859088,-151.0,0.0002259,7]
[373351796,1752961859098,-151.0,0.0002259,7]
[373351797,1752961859107,-459.976719,0.00022603,2]
[373351798,1752961859116,-200.0,0.00022603,2]
[373351799,1752961859125,-500.0,0.00022613,2]
[373351800,1752961859135,-736.79,0.00022654,2]
[373351801,1752961859145,-509.72,0.00022655,2]
[373351802,1752961859155,-151.0,0.00022655,7]
[373351803,1752961859165,-555.37,0.00022655,2]
[373351804,1752961859175,-460.0,0.00022655,2]
[373351805,1752961859184,-1144.31,0.00022655,2]
[373351806,1752961859194,-202.464755,0.00022655,7]
[373351807,1752961859204,-202.464755,0.00022655,7]
[373351808,1752961859214,-1792.78,0.00022655,2]
[373351809,1752961859223,-1310.48,0.00022655,2]
[373351810,1752961859234,-460.0,0.00022655,2]
[373351811,1752961859244,-571.29,0.00022655,2]
[373351812,1752961859254,-512.3,0.00022655,2]
[373351813,1752961859264,-1418.71,0.00022655,2]
[373351814,1752961859274,-460.0,0.00022655,2]
[373351815,1752961859284,-791.31,0.00022656,2]
[373351816,1752961859294,-543.72,0.00022656,2]
[373351817,1752961859304,-1978.99,0.00022656,2]
[373351818,1752961859314,-537.66,0.00022657,2]
[373351819,1752961859325,-476.16,0.00022657,2]
[373351820,1752961859335,-975.33,0.00022657,2]
[373351821,1752961859344,-1037.05,0.00022657,2]
[373351822,1752961859354,-153.0,0.00022658,2]
[373351823,1752961859363,-153.0,0.00022658,2]
[373351824,1752961859373,-153.0,0.00022658,2]
[373351825,1752961859382,-153.0,0.00022658,2]
[373351826,1752961859391,-153.0,0.00022658,2]
[373351827,1752961859401,-153.0,0.00022658,2]
[373351828,1752961859410,-153.0,0.00022658,2]
[373351829,1752961859420,-153.0,0.00022658,2]
[373351830,1752961859434,-1148.9313414,0.00022658,2]
[373351831,1752961859443,-353.3490101,0.00022658,2]
[373351832,1752961859453,-153.0,0.00022658,2]
[373351833,1752961859462,-153.0,0.00022658,2]
[373351834,1752961859473,-153.0,0.00022658,2]
[373351835,1752961859484,-153.0,0.00022658,2]
[373351836,1752961859494,-153.0,0.00022658,2]
[373351837,1752961859504,-153.0,0.00022658,2]
[373351838,1752961859514,-153.0,0.00022658,2]
[373351839,1752961859523,-153.0,0.00022658,2]
[373351840,1752961859533,-153.0,0.00022658,2]
[373351841,1752961859542,-153.0,0.00022658,2]
[373351842,1752961859551,-153.0,0.00022658,2]
[373351843,1752961859561,-153.0,0.00022658,2]
[373351844,1752961859570,-153.0,0.00022658,2]
[373351845,1752961859580,-153.0,0.00022658,2]
[373351846,1752961859589,-153.0,0.00022658,2]
[373351847,1752961859599,-153.0,0.00022658,2]
[373351848,1752961859608,-153.0,0.00022658,2]
[373351849,1752961859617,-153.0,0.00022658,2]
[373351850,1752961859628,-153.0,0.00022658,2]
[373351851,1752961859637,-153.0,0.00022658,2]
[373351852,1752961859647,-153.0,0.00022658,2]
[373351853,1752961859656,-530.42,0.00022687,2]
[373351854,1752961859666,-200.0,0.0002269,5]
[373351855,1752961859675,-152.474155,0.00022692,14]
[373351856,1752961859685,-929.09,0.00022701,2]
[373351857,1752961859694,-780.24,0.00022701,2]
[373351858,1752961859703,-280.10405,0.00022702,7]
[373351859,1752961859713,-280.10405,0.00022702,7]
[373351860,1752961859722,-643.0,0.00022706,2]
[373351861,1752961859732,-245.0,0.00022706,2]
[373351862,1752961859742,-577.0,0.00022706,2]
[373351863,1752961859752,-429.3901486,0.00022711,2]
[373351864,1752961859761,-152.474155,0.00022731,3]
[373351865,1752961859771,-740.0,0.00022754,2]
[373351866,1752961859780,-151.0,0.00022762,7]
[373351867,1752961859800,-316.0,0.0002277,2]
[373351868,1752961859810,-316.0,0.0002277,2]
[373351869,1752961859819,-530.42,0.00022787,6]
[373351870,1752961859828,-151.0,0.00022796,7]
[373351871,1752961859837,-170.575418,0.00022796,7]
[373351872,1752961859846,-1720.306549,0.000228,5]
[373351873,1752961859856,-206.0,0.0002282,2]
[373351874,1752961859866,-1000.0,0.0002282,5]
[373351875,1752961859876,-316.0,0.00022826,2]
[373351876,1752961859892,-500.0,0.00022833,2]
[373351877,1752961859909,-1000.0,0.0002284,5]
[373351878,1752961859922,-1000.0,0.0002286,5]
[373351879,1752961859937,-9513.16059442,0.00022866,8]
[373351880,1752961859953,-152.474155,0.00022875,4]
[373351881,1752961859969,-1000.0,0.0002288,5]
[373351882,1752961859982,-530.42,0.00022887,5]
[373351883,1752961859999,-1000.0,0.000229,5]
[373351884,1752961860013,-152.474155,0.00022909,6]
[373351885,1752961860027,-1000.0,0.0002292,5]
[373351886,1752961860040,-736.79,0.00022928,2]
[373351887,1752961860057,-509.72,0.00022929,2]
[373351888,1752961860071,-555.37,0.00022929,2]
[373351889,1752961860083,-470.92071556,0.00022929,2]
[373351890,1752961860096,-1144.31,0.00022929,2]
[373351891,1752961860111,-1792.78,0.00022929,2]
[373351892,1752961860127,-1310.48,0.00022929,2]
[373351893,1752961860142,-460.0,0.00022929,2]
[373351894,1752961860157,-571.29,0.00022929,2]
[373351895,1752961860173,-512.3,0.00022929,2]
[373351896,1752961860184,-1418.71,0.00022929,2]
[373351897,1752961860196,-460.0,0.00022929,2]
[373351898,1752961860212,-316.0,0.0002293,2]
[373351899,1752961860226,-791.31,0.0002293,2]
[373351900,1752961860239,-543.72,0.0002293,2]
[373351901,1752961860252,-1978.99,0.0002293,2]
[373351902,1752961860266,-537.66,0.00022931,2]
[373351903,1752961860278,-476.16,0.00022931,2]
[373351904,1752961860290,-975.33,0.00022931,2]
[373351905,1752961860303,-1037.05,0.00022931,2]
[373351906,1752961860315,-1000.0,0.0002294,5]
[373351907,1752961860328,-153.0,0.00022959,2]
[373351908,1752961860341,-153.0,0.00022959,2]
[373351909,1752961860353,-153.0,0.00022959,2]
[373351910,1752961860366,-1000.0,0.0002296,5]
[373351911,1752961860378,-150.0,0.00022973,2]
[373351912,1752961860391,-929.09,0.00022975,2]
[373351913,1752961860403,-780.24,0.00022975,2]
[373351914,1752961860415,-151.0,0.00022977,7]
[373351915,1752961860430,-643.0,0.0002298,2]
[373351916,1752961860442,-577.0,0.0002298,2]
[373351917,1752961860454,-1000.0,0.0002298,5]
[373351918,1752961860467,-530.42,0.00022987,2]
[373351919,1752961860480,-152.474155,0.0002299,7]
[373351920,1752961860492,-1120.99278385,0.00023,7]
[373351924,1752962208001,150.0,0.00014733,2]
[373351925,1752962336426,150.0,0.00014712,2]
[373351928,1752962850136,150.0,0.00014748,2]
[373351929,1752962882932,5000.0,0.00015,2]
[373351930,1752962889889,207.025266,0.00013699,2]
[373351932,1752962914534,150.0,0.00014751,2]
[373351933,1752962953170,-256.50850779,0.00016949,2]
[373351934,1752962978547,150.0,0.00014753,2]
[373352007,1752963033016,-252.07300421,0.00016949,2]
[373352009,1752963033026,-118.26656282,0.00017735,2]
[373352212,1752963038907,-108.22492939,0.00017735,2]
[373352214,1752963038916,-160.0,0.00017858,2]
[373352216,1752963038926,-154.69243927,0.00017891,2]
[373352218,1752963038936,-909.0,0.00017895,2]
[373352220,1752963038945,-867.0,0.00017896,2]
[373352222,1752963038954,-2125.71730355,0.00017896,2]
[373352225,1752963038974,-1209.34240391,0.00017896,2]
[373352227,1752963038984,-544.6962906,0.00017897,2]
[373352229,1752963038994,-300.0,0.00017899,2]
[373352231,1752963039003,-4751.91731758,0.00017973,2]
[373352233,1752963039013,-500.0,0.00017973,2]
[373352235,1752963039022,-500.0,0.00017973,2]
[373352237,1752963039031,-500.0,0.00017973,2]
[373352239,1752963039040,-500.0,0.00017973,2]
[373352241,1752963039050,-500.0,0.00017973,2]
[373352243,1752963039059,-500.0,0.00017973,2]
[373352245,1752963039068,-500.0,0.00017973,2]
[373352247,1752963039077,-304.97620169,0.00017973,2]
[373352249,1752963039087,-500.0,0.00017973,2]
[373352251,1752963039096,-500.0,0.00017973,2]
[373352253,1752963039105,-171.32,0.00017982,3]
[373352255,1752963039114,-514.0,0.00017982,3]
[373352257,1752963039123,-999.50024988,0.0001799,2]
[373352259,1752963039132,-460.0,0.0001799,2]
[373352261,1752963039141,-460.0,0.0001799,2]
[373352263,1752963039150,-460.0,0.0001799,2]
[373352265,1752963039159,-460.0,0.0001799,2]
[373352266,1752963039168,-460.0,0.0001799,2]
[373352268,1752963039177,-438.13815607,0.0001799,2]
[373352271,1752963039189,-460.0,0.0001799,2]
[373352272,1752963039198,-463.3122733,0.0001799,2]
[373352275,1752963039208,-460.0,0.0001799,2]
[373352276,1752963039217,-460.0,0.0001799,2]
[373352278,1752963039227,-460.0,0.0001799,2]
[373352280,1752963039237,-468.43847699,0.0001799,2]
[373352282,1752963039246,-460.0,0.0001799,2]
[373352284,1752963039255,-460.0,0.0001799,2]
[373352286,1752963039265,-685.91,0.0001799,2]
[373352288,1752963039274,-462.31094689,0.0001799,2]
[373352290,1752963039284,-460.0,0.0001799,2]
[373352291,1752963039294,-460.0,0.0001799,2]
[373352292,1752963039303,-460.0,0.0001799,2]
[373352293,1752963039312,-460.0,0.0001799,2]
[373352294,1752963039321,-460.0,0.0001799,2]
[373352296,1752963039331,-221.03076702,0.0001799,2]
[373352298,1752963039340,-460.0,0.0001799,2]
[373352300,1752963039350,-460.0,0.0001799,2]
[373352301,1752963039359,-460.0,0.0001799,2]
[373352302,1752963039369,-460.0,0.00017991,2]
[373352303,1752963039379,-460.0,0.00017991,2]
[373352304,1752963039389,-460.0,0.00017991,2]
[373352305,1752963039399,-460.0,0.00017991,2]
[373352306,1752963039408,-460.0,0.00017991,2]
[373352307,1752963039418,-1000.0,0.00017991,2]
[373352309,1752963039428,-592.50158409,0.00017991,2]
[373352311,1752963039439,-552.16935836,0.00017991,2]
[373352313,1752963039448,-460.0,0.00017991,2]
[373352314,1752963039458,-464.72862013,0.00017991,2]
[373352316,1752963039468,-407.9216984,0.00017991,2]
[373352317,1752963039477,-460.0,0.00017991,2]
[373352318,1752963039487,-460.0,0.00017991,2]
[373352319,1752963039496,-460.0,0.00017991,2]
[373352320,1752963039506,-460.0,0.00017991,2]
[373352321,1752963039516,-460.0,0.00017991,2]
[373352322,1752963039525,-460.0,0.00017991,2]
[373352323,1752963039535,-1064.83,0.00017991,2]
[373352324,1752963039545,-500.0,0.00017991,2]
[373352325,1752963039554,-460.0,0.00017991,2]
[373352326,1752963039564,-460.0,0.00017991,2]
[373352327,1752963039573,-460.0,0.00017991,2]
[373352328,1752963039583,-460.0,0.00017991,2]
[373352329,1752963039592,-1820.47,0.00017991,2]
[373352330,1752963039601,-868.29,0.00017991,2]
[373352331,1752963039611,-453.4158001,0.00017991,2]
[373352332,1752963039624,-6.5841999,0.00017991,2]
[373352333,1752963039634,-460.0,0.00017991,2]
[373352334,1752963039644,-460.0,0.00017991,2]
[373352335,1752963039653,-518.2,0.00017991,2]
[373352336,1752963039662,-460.0,0.00017991,2]
[373352337,1752963039672,-460.0,0.00017991,2]
[373352338,1752963039681,-460.0,0.00017991,2]
[373352339,1752963039692,-460.0,0.00017991,2]
[373352340,1752963039703,-460.0,0.00017991,2]
[373352341,1752963039712,-460.0,0.00017991,2]
[373352342,1752963039722,-460.0,0.00017991,2]
[373352343,1752963039732,-460.0,0.00017991,2]
[373352344,1752963039741,-948.74,0.00017991,2]
[373352345,1752963039750,-460.0,0.00017991,2]
[373352346,1752963039760,-460.0,0.00017991,2]
[373352347,1752963039770,-460.0,0.00017991,2]
[373352348,1752963039781,-460.0,0.00017991,2]
[373352349,1752963039791,-460.0,0.00017991,2]
[373352350,1752963039801,-471.14584976,0.00017991,2]
[373352351,1752963039810,-303.14909525,0.00017991,2]
[373352352,1752963039820,-425.87118872,0.00017991,2]
[373352353,1752963039830,-238.473546,0.00017991,2]
[373352354,1752963039839,-516.48175455,0.00017991,2]
[373352355,1752963039850,-500.0,0.00017991,2]
[373352356,1752963039860,-500.0,0.00017991,2]
[373352357,1752963039869,-500.0,0.00017991,2]
[373352358,1752963039878,-500.0,0.00017991,2]
[373352359,1752963039887,-500.0,0.00017991,2]
[373352360,1752963039897,-516.48175455,0.00017991,2]
[373352361,1752963039906,-500.0,0.00017991,2]
[373352362,1752963039916,-500.0,0.00017991,2]
[373352363,1752963039925,-500.0,0.00017991,2]
[373352364,1752963039935,-174.06416626,0.00017991,2]
[373352365,1752963039944,-500.0,0.00017991,2]
[373352366,1752963039953,-516.48175455,0.00017991,2]
[373352367,1752963039963,-500.0,0.00017991,2]
[373352368,1752963039972,-500.0,0.00017991,2]
[373352369,1752963039982,-500.0,0.00017991,2]
[373352370,1752963039991,-500.0,0.00017991,2]
[373352371,1752963040001,-516.48175455,0.00017991,2]
[373352372,1752963040011,-500.0,0.00017991,2]
[373352373,1752963040021,-500.0,0.00017991,2]
[373352374,1752963040031,-500.0,0.00017991,2]
[373352375,1752963040041,-516.48175455,0.00017991,2]
[373352376,1752963040051,-500.0,0.00017991,2]
[373352377,1752963040061,-250.0,0.00017991,2]
[373352378,1752963040070,-601.36223097,0.00017991,2]
[373352379,1752963040080,-516.48175455,0.00017991,2]
[373352380,1752963040089,-551.88993555,0.00017991,2]
[373352381,1752963040098,-500.0,0.00017991,2]
[373352382,1752963040107,-516.48175455,0.00017991,2]
[373352383,1752963040117,-516.48175455,0.00017991,2]
[373352384,1752963040126,-500.0,0.00017991,2]
[373352385,1752963040135,-516.48175455,0.00017991,2]
[373352386,1752963040145,-500.0,0.00017991,2]
[373352387,1752963040155,-516.48175455,0.00017991,2]
[373352388,1752963040165,-500.0,0.00017991,2]
[373352389,1752963040174,-516.48175455,0.00017991,2]
[373352390,1752963040185,-99.85684591,0.00017991,2]
[373352391,1752963040198,-400.14315409,0.00017991,2]
[373352392,1752963040208,-180.37128352,0.00017991,2]
[373352393,1752963040219,-336.11047103,0.00017991,2]
[373352394,1752963040228,-82.59106116,0.00017991,2]
[373352395,1752963040240,-417.40893884,0.00017991,2]
[373352396,1752963040249,-516.48175455,0.00017991,2]
[373352397,1752963040258,-500.0,0.00017991,2]
[373352398,1752963040267,-500.0,0.00017991,2]
[373352399,1752963040277,-516.48175455,0.00017991,2]
[373352400,1752963040286,-500.0,0.00017991,2]
[373352401,1752963040295,-516.48175455,0.00017991,2]
[373352402,1752963040304,-516.48175455,0.00017991,2]
[373352403,1752963040313,-500.0,0.00017991,2]
[373352404,1752963040322,-500.0,0.00017991,2]
[373352405,1752963040331,-516.48175455,0.00017991,2]
[373352406,1752963040341,-500.0,0.00017991,2]
[373352407,1752963040350,-516.48175455,0.00017991,2]
[373352408,1752963040360,-400.0,0.00017991,2]
[373352409,1752963040370,-516.48175455,0.00017991,2]
[373352410,1752963040379,-500.0,0.00017991,2]
[373352411,1752963040388,-516.48175455,0.00017991,2]
[373352412,1752963040398,-516.48175455,0.00017991,2]
[373352413,1752963040408,-516.48175455,0.00017991,2]
[373352414,1752963040418,-500.0,0.00017991,2]
[373352415,1752963040428,-516.48175455,0.00017991,2]
[373352416,1752963040439,-516.48175455,0.00017991,2]
[373352417,1752963040448,-106.74670138,0.00017991,2]
[373352425,1752963041187,-460.0,0.00017991,2]
[373352426,1752963041197,-393.25329862,0.00017991,2]
[373352427,1752963041207,-516.48175455,0.00017991,2]
[373352428,1752963041216,-500.0,0.00017991,2]
[373352429,1752963041225,-516.48175455,0.00017991,2]
[373352430,1752963041235,-516.48175455,0.00017991,2]
[373352431,1752963041244,-516.48175455,0.00017991,2]
[373352432,1752963041254,-516.48175455,0.00017991,2]
[373352433,1752963041263,-516.48175455,0.00017991,2]
[373352434,1752963041273,-516.48175455,0.00017991,2]
[373352435,1752963041282,-516.48175455,0.00017991,2]
[373352436,1752963041292,-516.48175455,0.00017991,2]
[373352437,1752963041303,-516.48175455,0.00017991,2]
[373352438,1752963041312,-516.48175455,0.00017991,2]
[373352439,1752963041322,-516.48175455,0.00017991,2]
[373352440,1752963041332,-516.48175455,0.00017991,2]
[373352441,1752963041341,-516.48175455,0.00017991,2]
[373352442,1752963041351,-516.48175455,0.00017991,2]
[373352443,1752963041360,-516.48175455,0.00017991,2]
[373352444,1752963041370,-516.48175455,0.00017991,2]
[373352445,1752963041379,-516.48175455,0.00017991,2]
[373352446,1752963041389,-516.48175455,0.00017991,2]
[373352447,1752963041398,-516.48175455,0.00017991,2]
[373352448,1752963041408,-576.03813226,0.00017991,2]
[373352449,1752963041418,-576.03813226,0.00017991,2]
[373352450,1752963041427,-576.03813226,0.00017991,2]
[373352451,1752963041437,-576.03813226,0.00017991,2]
[373352452,1752963041447,-576.03813226,0.00017991,2]
[373352453,1752963041456,-576.03813226,0.00017991,2]
[373352454,1752963041466,-576.03813226,0.00017991,2]
[373352455,1752963041476,-576.03813226,0.00017991,2]
[373352456,1752963041486,-576.03813226,0.00017991,2]
[373352457,1752963041495,-576.03813226,0.00017991,2]
[373352458,1752963041504,-576.03813226,0.00017991,2]
[373352459,1752963041513,-576.03813226,0.00017991,2]
[373352460,1752963041522,-500.0,0.00017991,2]
[373352461,1752963041532,-576.03813226,0.00017991,2]
[373352462,1752963041541,-500.0,0.00017991,2]
[373352463,1752963041551,-576.03813226,0.00017991,2]
[373352464,1752963041561,-500.0,0.00017991,2]
[373352465,1752963041570,-576.03813226,0.00017991,2]
[373352466,1752963041580,-500.0,0.00017991,2]
[373352467,1752963041590,-500.0,0.00017991,2]
[373352468,1752963041599,-576.03813226,0.00017991,2]
[373352469,1752963041609,-576.03813226,0.00017991,2]
[373352470,1752963041618,-500.0,0.00017991,2]
[373352471,1752963041627,-576.03813226,0.00017991,2]
[373352472,1752963041637,-500.0,0.00017991,2]
[373352473,1752963041647,-500.0,0.00017991,2]
[373352474,1752963041656,-576.03813226,0.00017991,2]
[373352475,1752963041666,-500.0,0.00017991,2]
[373352476,1752963041675,-576.03813226,0.00017991,2]